fUST/lending_fUST_20241202
["ID","MTS","AMOUNT","RATE_DAILY","PERIOD"]
[343959414,1733147228994,-500.0,0.00026772,2]
[343959415,1733147229021,-500.0,0.00026772,2]
[343959416,1733147229049,-500.0,0.00026772,2]
[343959417,1733147229076,-500.0,0.00026772,2]
[343959418,1733147229105,-500.0,0.00026772,2]
[343959419,1733147229133,-500.0,0.00026772,2]
[343959420,1733147229162,-500.0,0.00026772,2]
[343959421,1733147229190,-500.0,0.00026772,2]
[343959422,1733147229221,-500.0,0.00026772,2]
[343959423,1733147229247,-500.0,0.00026772,2]
[343959424,1733147229273,-500.0,0.00026772,2]
[343959425,1733147229300,-500.0,0.00026772,2]
[343959426,1733147229332,-500.0,0.00026772,2]
[343959427,1733147229362,-500.0,0.00026772,2]
[343959428,1733147229392,-500.0,0.00026772,2]
[343959429,1733147229419,-500.0,0.00026772,2]
[343959430,1733147229451,-500.0,0.00026772,2]
[343959431,1733147229485,-500.0,0.00026772,2]
[343959432,1733147229513,-500.0,0.00026772,2]
[343959433,1733147229541,-500.0,0.00026772,2]
[343959434,1733147229567,-500.0,0.00026772,2]
[343959435,1733147229593,-500.0,0.00026772,2]
[343959436,1733147229618,-500.0,0.00026772,2]
[343959437,1733147229644,-500.0,0.00026772,2]
[343959438,1733147229669,-500.0,0.00026772,2]
[343959439,1733147229694,-500.0,0.00026772,2]
[343959440,1733147229723,-500.0,0.00026772,2]
[343959441,1733147229748,-500.0,0.00026772,2]
[343959442,1733147229773,-500.0,0.00026772,2]
[343959443,1733147229798,-500.0,0.00026772,2]
[343959444,1733147229822,-500.0,0.00026772,2]
[343959445,1733147229846,-500.0,0.00026772,2]
[343959446,1733147229997,-500.0,0.00026772,2]
[343959447,1733147230021,-395.4482726,0.00026772,2]
[343959448,1733147230113,-104.5517274,0.00026772,2]
[343959449,1733147230137,-500.0,0.00026772,2]
[343959450,1733147230162,-500.0,0.00026772,2]
[343959451,1733147230185,-500.0,0.00026772,2]
[343959452,1733147230209,-500.0,0.00026772,2]
[343959453,1733147230235,-500.0,0.00026772,2]
[343959454,1733147230256,-500.0,0.00026772,2]
[343959455,1733147230278,-500.0,0.00026772,2]
[343959456,1733147230301,-500.0,0.00026772,2]
[343959457,1733147230323,-500.0,0.00026772,2]
[343959458,1733147230348,-500.0,0.00026772,2]
[343959459,1733147230370,-500.0,0.00026772,2]
[343959460,1733147230393,-500.0,0.00026772,2]
[343959461,1733147230416,-500.0,0.00026772,2]
[343959462,1733147230442,-500.0,0.00026772,2]
[343959463,1733147230468,-500.0,0.00026772,2]
[343959464,1733147230492,-500.0,0.00026772,2]
[343959465,1733147230518,-500.0,0.00026772,2]
[343959466,1733147230543,-500.0,0.00026772,2]
[343959467,1733147230565,-500.0,0.00026772,2]
[343959468,1733147230587,-500.0,0.00026772,2]
[343959469,1733147230610,-500.0,0.00026772,2]
[343959470,1733147230633,-292.00255989,0.00026772,2]
[343959471,1733147230658,-500.0,0.00026772,2]
[343959472,1733147230680,-500.0,0.00026772,2]
[343959473,1733147230704,-334.0397932,0.00026773,2]
[343959474,1733147230729,-250.0,0.00026773,2]
[343959475,1733147230749,-502.57895296,0.00026773,2]
[343959476,1733147230771,-500.0,0.00026773,2]
[343959477,1733147230792,-24401.7137,0.00026778,30]
[343959478,1733147230813,-587.0,0.00026834,2]
[343959479,1733147230833,-734.96070114,0.00026905,2]
[343959480,1733147230854,-155.06785009,0.00027027,2]
[343959481,1733147230874,-500.0,0.00027397,7]
[343959482,1733147230894,-500.0,0.00027397,7]
[343959483,1733147230915,-500.0,0.00027397,7]
[343959484,1733147230937,-265.95367822,0.00027397,7]
[343959485,1733147230960,-500.0,0.00027397,7]
[343959486,1733147230984,-500.0,0.00027397,2]
[343959487,1733147231007,-500.0,0.00027397,7]
[343959488,1733147231028,-500.0,0.00027397,7]
[343959489,1733147231051,-1887.73,0.00027397,7]
[343959490,1733147231074,-500.0,0.00027397,7]
[343959491,1733147231095,-500.0,0.00027397,7]
[343959492,1733147231118,-500.0,0.00027397,7]
[343959493,1733147231142,-500.0,0.00027397,7]
[343959494,1733147231165,-500.0,0.00027397,7]
[343959495,1733147231186,-500.0,0.00027397,7]
[343959496,1733147231208,-500.0,0.00027397,7]
[343959497,1733147231232,-168.0,0.00027397,7]
[343959498,1733147231253,-500.0,0.00027397,7]
[343959499,1733147231277,-500.0,0.00027397,7]
[343959500,1733147231298,-500.0,0.00027397,7]
[343959501,1733147231320,-500.0,0.00027397,7]
[343959502,1733147231342,-587.0,0.0002754,2]
[343959503,1733147231362,-500.0,0.00027671,7]
[343959504,1733147231383,-276.92600202,0.00027671,7]
[343959505,1733147231404,-500.0,0.00027671,7]
[343959506,1733147231429,-600.0,0.00027671,2]
[343959507,1733147231450,-500.0,0.00027671,7]
[343959508,1733147231473,-500.0,0.00027671,7]
[343959509,1733147231496,-1887.73,0.00027671,7]
[343959510,1733147231520,-500.0,0.00027671,7]
[343959511,1733147231543,-500.0,0.00027671,7]
[343959512,1733147231566,-500.0,0.00027671,7]
[343959513,1733147231589,-324.26997985,0.00027671,7]
[343959514,1733147231611,-500.0,0.00027671,7]
[343959515,1733147231633,-500.0,0.00027671,7]
[343959516,1733147231655,-500.0,0.00027671,7]
[343959517,1733147231678,-168.0,0.00027671,7]
[343959518,1733147231703,-500.0,0.00027671,7]
[343959519,1733147231728,-500.0,0.00027671,7]
[343959520,1733147231751,-500.0,0.00027671,7]
[343959521,1733147231774,-500.0,0.00027671,7]
[343959522,1733147231797,-734.96070114,0.00027759,2]
[343959523,1733147231818,-159.61858464,0.00027775,2]
[343959524,1733147231841,-153.09,0.000279,31]
[343959525,1733147231866,-153.09,0.000279,31]
[343959526,1733147231888,-500.0,0.00027944,7]
[343959527,1733147231908,-500.0,0.00027944,7]
[343959528,1733147231930,-500.0,0.00027944,7]
[343959529,1733147231951,-500.0,0.00027944,7]
[343959530,1733147231975,-500.0,0.00027944,7]
[343959531,1733147231997,-500.0,0.00027944,7]
[343959532,1733147232019,-423.34006538,0.00027945,7]
[343959533,1733147232044,-1887.73,0.00027945,7]
[343959534,1733147232068,-500.0,0.00027945,7]
[343959535,1733147232091,-500.0,0.00027945,7]
[343959536,1733147232113,-500.0,0.00027945,7]
[343959537,1733147232135,-500.0,0.00027945,7]
[343959538,1733147232158,-443.01870938,0.00027945,7]
[343959539,1733147232180,-168.0,0.00027945,7]
[343959540,1733147232202,-500.0,0.00027945,7]
[343959541,1733147232227,-500.0,0.00027945,7]
[343959542,1733147232252,-578.99177644,0.00027945,7]
[343959543,1733147232275,-500.0,0.00027945,7]
[343959544,1733147232298,-813.91,0.00028,2]
[343959545,1733147232324,-2000.0,0.00028,2]
[343959546,1733147232346,-154.339904,0.00028012,2]
[343959547,1733147232366,-172.183979,0.00028012,2]
[343959548,1733147232390,-389.14143354,0.00028218,7]
[343959549,1733147232412,-500.0,0.00028218,7]
[343959550,1733147232438,-500.0,0.00028218,7]
[343959551,1733147232461,-1887.73,0.00028219,7]
[343959552,1733147232489,-500.0,0.00028219,7]
[343959553,1733147232513,-500.0,0.00028219,7]
[343959554,1733147232536,-168.0,0.00028219,7]
[343959555,1733147232558,-500.0,0.00028219,7]
[343959556,1733147232580,-155.0033925,0.00028378,2]
[343959557,1733147232603,-551.08263086,0.00028492,2]
[343959558,1733147232626,-1887.73,0.00028493,7]
[343959559,1733147232648,-500.0,0.00028493,7]
[343959560,1733147232671,-240.13,0.00028493,7]
[343959561,1733147232692,-168.0,0.00028493,7]
[343959562,1733147232714,-500.0,0.00028493,7]
[343959563,1733147232744,-153.09,0.000285,31]
[343959564,1733147232770,-153.09,0.000285,31]
[343959565,1733147232795,-153.09,0.000285,31]
[343959566,1733147232820,-153.09,0.000285,31]
[343959567,1733147232842,-734.96070114,0.00028612,2]
[343959568,1733147232865,-159.61858464,0.00028623,2]
[343959569,1733147232887,-1887.73,0.00028767,7]
[343959570,1733147232909,-500.0,0.00028767,7]
[343959571,1733147232930,-172.35,0.00028767,7]
[343959572,1733147232951,-592.01,0.00028767,7]
[343959573,1733147232980,-1887.73,0.00029041,7]
[343959574,1733147233006,-500.0,0.00029041,7]
[343959575,1733147233030,-153.09,0.000291,31]
[343959576,1733147233054,-153.09,0.000291,31]
[343959577,1733147233169,-153.09,0.000291,31]
[343959578,1733147233195,-153.09,0.000291,31]
[343959579,1733147233221,-823.0,0.00029137,2]
[343959580,1733147233247,-487.0,0.00029148,15]
[343959581,1733147233270,-1887.73,0.00029315,7]
[343959582,1733147233293,-500.0,0.00029315,7]
[343959583,1733147233316,-154.339904,0.00029413,2]
[343959584,1733147233340,-734.96070114,0.00029465,2]
[343959585,1733147233364,-159.61858464,0.0002947,2]
[343959586,1733147233388,-1887.73,0.00029589,7]
[343959587,1733147233412,-500.0,0.00029589,7]
[343959588,1733147233440,-153.09,0.000297,31]
[343959589,1733147233471,-153.09,0.000297,31]
[343959590,1733147233497,-153.09,0.000297,31]
[343959591,1733147233524,-153.09,0.000297,31]
[343959592,1733147233547,-155.00016963,0.00029797,2]
[343959593,1733147233571,-1887.73,0.00029863,7]
[343959594,1733147233595,-500.0,0.00029863,7]
[343959595,1733147233618,-162.0,0.0003,2]
[343959596,1733147233641,-250.0,0.0003,120]
[343959597,1733147233663,-200.0,0.0003,2]
[343959598,1733147233686,-1887.73,0.00030136,7]
[343959599,1733147233710,-500.0,0.00030136,7]
[343959600,1733147233735,-293.27229,0.00030137,120]
[343959601,1733147233758,-823.0,0.00030294,2]
[343959602,1733147233782,-3770.97209116,0.00030316,2]
[343959603,1733147239104,-369.56087715,0.00024953,2]
[343959604,1733147239125,-160.0,0.00028562,3]
[343959605,1733147239148,-471.185075,0.00029148,15]
[343959606,1733147239169,-160.0,0.00030139,4]
[343959607,1733147239191,-2895.02790884,0.00030316,2]
[343959608,1733147239214,-734.96070114,0.00030318,2]
[343959609,1733147239239,-2000.0,0.000304,3]
[343959610,1733147239263,-153.09,0.000304,31]
[343959611,1733147239287,-153.09,0.000304,31]
[343959612,1733147239311,-153.09,0.000304,31]
[343959613,1733147239336,-153.09,0.000304,31]
[343959614,1733147239361,-305.56,0.00030407,10]
[343959615,1733147239383,-1887.73,0.0003041,7]
[343959616,1733147239406,-500.0,0.0003041,7]
[343959617,1733147239427,-260.28329182,0.00030416,2]
[343959618,1733147239452,-151.0,0.00030418,7]
[343959619,1733147239479,-151.0,0.00030418,7]
[343959620,1733147239503,-151.0,0.00030418,7]
[343959621,1733147239525,-151.0,0.00030418,7]
[343959622,1733147239546,-151.0,0.00030418,7]
[343959623,1733147239566,-151.0,0.00030418,7]
[343959624,1733147239588,-7507.84112705,0.00030418,2]
[343959627,1733147340762,162.529971,0.00013973,2]
[343959655,1733147434854,-528.5843909,0.00024703,2]
[343959656,1733147434864,-293.9769269,0.00026185,2]
[343959657,1733147434877,-500.0,0.00027397,7]
[343959658,1733147434887,-943.87,0.00027397,7]
[343959659,1733147434896,-35.16414431,0.00027671,7]
[343959660,1733147434908,-464.83585569,0.00027671,7]
[343959661,1733147434918,-943.87,0.00027671,7]
[343959662,1733147434929,-300.0,0.00027943,2]
[343959663,1733147434939,-300.0,0.00027943,2]
[343959665,1733147434948,-500.0,0.00027945,7]
[343959667,1733147434958,-943.87,0.00027945,7]
[343959669,1733147434967,-732.52,0.00028,2]
[343959670,1733147434976,-24900.0,0.00028118,2]
[343959671,1733147434985,-500.0,0.00028219,7]
[343959672,1733147434994,-943.87,0.00028219,7]
[343959673,1733147435003,-500.0,0.00028493,7]
[343959674,1733147435012,-943.87,0.00028493,7]
[343959675,1733147435021,-500.0,0.00028767,7]
[343959676,1733147435031,-943.87,0.00028767,7]
[343959677,1733147435041,-500.0,0.00029041,7]
[343959678,1733147435050,-943.87,0.00029041,7]
[343959679,1733147435060,-219.4714517,0.00029101,2]
[343959680,1733147435069,-452.95,0.00029148,15]
[343959681,1733147435078,-500.0,0.00029315,7]
[343959682,1733147435087,-943.87,0.00029315,7]
[343959683,1733147435097,-500.0,0.00029589,7]
[343959684,1733147435106,-943.87,0.00029589,7]
[343959685,1733147435115,-500.0,0.00029863,7]
[343959686,1733147435127,-943.87,0.00029863,7]
[343959687,1733147435137,-267.0,0.0003,2]
[343959688,1733147435147,-532.52110532,0.00030136,7]
[343959689,1733147435157,-943.87,0.00030136,7]
[343959690,1733147435167,-219.954217,0.00030137,120]
[343959691,1733147435177,-420.0,0.0003018,2]
[343959692,1733147435186,-319.2371693,0.00030317,2]
[343959693,1733147435196,-6666.0,0.00030317,2]
[343959694,1733147435206,-254.63,0.00030407,10]
[343959695,1733147435216,-212.19,0.00030407,10]
[343959696,1733147435225,-943.87,0.0003041,7]
[343959697,1733147435234,-500.0,0.00030416,2]
[343959698,1733147435243,-420.45182771,0.00030416,2]
[343959699,1733147435253,-500.0,0.00030416,2]
[343959700,1733147435263,-522.03872155,0.00030416,2]
[343959701,1733147435273,-500.0,0.00030416,2]
[343959702,1733147435282,-622.75609598,0.00030416,2]
[343959703,1733147435292,-370.55831559,0.00030416,2]
[343959704,1733147435303,-500.0,0.00030416,2]
[343959705,1733147435314,-373.62500303,0.00030416,2]
[343959706,1733147435324,-500.0,0.00030416,2]
[343959707,1733147435335,-500.0,0.00030416,2]
[343959708,1733147435345,-385.7578416,0.00030416,2]
[343959709,1733147435355,-33366.59633629,0.00030417,2]
[343959710,1733147435365,-216.90274318,0.00030417,2]
[343959711,1733147435378,-3019898.64785741,0.00030417,10]
[343959712,1733147435391,-5808.14335724,0.00030417,10]
[343959713,1733147435403,-3677.10068,0.00030417,10]
[343959714,1733147435414,-4223.36297131,0.00030417,10]
[343959720,1733147438693,-434.37701,0.00029148,15]
[343959721,1733147438702,-63815.62299,0.00030417,10]
[343959722,1733147438713,-166253.61453,0.00030417,10]
[343959723,1733147438725,-16905.96799855,0.00030417,10]
[343959724,1733147438738,-19091.8859388,0.00030417,10]
[343959744,1733147442070,-832.6694,0.00029148,15]
[343959745,1733147442079,-176.83,0.00030407,10]
[343959746,1733147442089,-180.75228599,0.00030417,2]
[343959747,1733147442100,-11104.43488601,0.00030417,10]
[343959748,1733147442112,-1725.70411003,0.00030417,10]
[343959749,1733147442123,-50396.09334933,0.00030417,10]
[343959760,1733147443756,-1621.73466564,0.00030417,10]
[343959761,1733147443768,-497.38040676,0.00030417,10]
[343959762,1733147443779,-350.53557882,0.00030417,10]
[343959763,1733147443792,-19654.42952,0.00030417,10]
[343959764,1733147443803,-151932.09804,0.00030417,10]
[343959790,1733147446819,-801.479,0.00029148,15]
[343959791,1733147446830,-1284.133109,0.00030417,10]
[343959792,1733147446841,-626.68295598,0.00030417,10]
[343959793,1733147447730,-33992.8411313,0.00030417,10]
[343959814,1733148060938,164.214961,0.00013973,2]
[343959817,1733148438148,-1169.27083333,0.0002,2]
[343959818,1733148438169,-500.0,0.00025205,2]
[343959819,1733148438190,-500.0,0.00025205,2]
[343959820,1733148438211,-447.17271329,0.00025205,2]
[343959821,1733148438232,-300.0,0.00027299,2]
[343959822,1733148438254,-300.0,0.00027299,2]
[343959823,1733148438275,-3000.0,0.000273,2]
[343959824,1733148438297,-3000.0,0.0002731,2]
[343959825,1733148438318,-5690.140135,0.0002732,2]
[343959826,1733148438342,-160.114495,0.00027751,2]
[343959827,1733148438363,-659.27,0.00028,2]
[343959828,1733148438385,-500.0,0.00028029,7]
[343959829,1733148438407,-500.00000086,0.00028029,7]
[343959830,1733148438429,-16491.5838644,0.00028029,2]
[343959831,1733148438453,-500.0,0.00028303,7]
[343959832,1733148438476,-500.0,0.00028576,7]
[343959833,1733148438498,-500.0,0.0002885,7]
[343959834,1733148438519,-734.3048,0.00029116,15]
[343959835,1733148438542,-500.0,0.00029124,7]
[343959836,1733148438564,-667.24248,0.00029148,15]
[343959837,1733148438589,-500.0,0.00029398,7]
[343959838,1733148438611,-420.0,0.00029504,2]
[343959839,1733148438633,-500.0,0.00029672,7]
[343959840,1733148438655,-500.0,0.00029946,7]
[343959841,1733148438676,-2000.0,0.0003,2]
[343959842,1733148438697,-957.48575139,0.0003,30]
[343959843,1733148438717,-162.0,0.0003,2]
[343959844,1733148438737,-222.0,0.0003,2]
[343959845,1733148438759,-420.0,0.00030029,2]
[343959846,1733148438779,-164.965662,0.00030137,120]
[343959847,1733148438802,-500.0,0.0003022,7]
[343959848,1733148438822,-153.01314582,0.000303,2]
[343959849,1733148438848,-153.01314581,0.00030307,2]
[343959850,1733148438869,-2058.56704054,0.00030313,2]
[343959851,1733148439015,-153.01314581,0.00030313,2]
[343959852,1733148439040,-6666.0,0.00030317,2]
[343959853,1733148439061,-2000.0,0.000304,3]
[343959854,1733148439083,-884.17,0.00030403,10]
[343959855,1733148439106,-270.03048912,0.00030412,2]
[343959856,1733148439128,-500.0,0.00030412,2]
[343959857,1733148439151,-500.0,0.00030412,2]
[343959858,1733148439174,-500.0,0.00030412,2]
[343959859,1733148439196,-204.09952414,0.00030412,2]
[343959860,1733148439219,-220.66096964,0.00030412,2]
[343959861,1733148439245,-500.0,0.00030412,2]
[343959862,1733148439267,-19045.87832959,0.00030413,2]
[343959863,1733148439289,-1169.27083333,0.00030413,7]
[343959864,1733148439311,-1169.27083333,0.00030413,7]
[343959865,1733148439333,-1169.27083333,0.00030413,7]
[343959866,1733148439362,-150.62690499,0.00030417,2]
[343959867,1733148439383,-151.0,0.00030418,15]
[343959868,1733148439404,-500.0,0.0003043,10]
[343959869,1733148439426,-500.0,0.0003043,10]
[343959870,1733148439447,-500.0,0.0003043,10]
[343959871,1733148439468,-282.72583265,0.0003043,10]
[343959872,1733148439488,-150.18,0.0003043,10]
[343959873,1733148439509,-199.64,0.0003043,10]
[343959874,1733148439529,-19223.52354844,0.00030441,10]
[343959875,1733148439549,-5000.0,0.00030465,14]
[343959876,1733148439569,-500.0,0.00030473,5]
[343959877,1733148439592,-500.0,0.00030494,7]
[343959878,1733148439613,-300.0,0.000305,3]
[343959879,1733148439633,-10000.0,0.00030537,5]
[343959880,1733148439652,-179.35907839,0.000307,2]
[343959881,1733148439672,-150.18,0.00030704,10]
[343959882,1733148439693,-500.0,0.00030768,7]
[343959883,1733148439712,-4235.99605418,0.00030904,28]
[343959884,1733148439732,-150.18,0.00030978,10]
[343959885,1733148439752,-784.63234294,0.00030983,2]
[343959886,1733148439772,-900.0,0.00031,120]
[343959887,1733148439794,-500.0,0.00031042,7]
[343959888,1733148439813,-1000.0,0.00031057,2]
[343959889,1733148439837,-342.57976497,0.000312,30]
[343959890,1733148439855,-150.18,0.00031252,10]
[343959891,1733148439892,-500.0,0.00031316,7]
[343959892,1733148439922,-500.0,0.0003135,5]
[343959893,1733148439945,-2000.0,0.000314,5]
[343959894,1733148439967,-1750.0,0.00031506,30]
[343959895,1733148439990,-1750.0,0.00031506,30]
[343959896,1733148440010,-1750.0,0.00031506,30]
[343959897,1733148440029,-1750.0,0.00031506,30]
[343959898,1733148440049,-1750.0,0.00031506,30]
[343959899,1733148440069,-1750.0,0.00031506,30]
[343959900,1733148440092,-1750.0,0.00031506,30]
[343959901,1733148440114,-1750.0,0.00031506,30]
[343959902,1733148440135,-1750.0,0.00031506,30]
[343959903,1733148440155,-1750.0,0.00031506,30]
[343959904,1733148440174,-1750.0,0.00031506,30]
[343959905,1733148440194,-1750.0,0.00031506,30]
[343959906,1733148440213,-1750.0,0.00031506,30]
[343959907,1733148440233,-1750.0,0.00031506,30]
[343959908,1733148440252,-1750.0,0.00031506,30]
[343959909,1733148440272,-1750.0,0.00031506,30]
[343959910,1733148440293,-154.18771858,0.00031526,10]
[343959911,1733148440313,-2104.10450824,0.0003154,120]
[343959912,1733148440334,-500.0,0.0003159,7]
[343959913,1733148440354,-16144.20300121,0.000316,2]
[343959914,1733148440374,-162.0,0.00031644,2]
[343959915,1733148440394,-160.0,0.00031715,5]
[343959916,1733148440415,-272.72244117,0.00031715,5]
[343959917,1733148440435,-1750.0,0.0003178,30]
[343959918,1733148440455,-153.0,0.00031853,2]
[343959919,1733148440475,-153.0,0.00031856,2]
[343959920,1733148440494,-153.0,0.00031856,2]
[343959921,1733148440514,-153.0,0.00031859,2]
[343959922,1733148440534,-153.0,0.00031859,2]
[343959923,1733148440555,-153.0,0.00031863,2]
[343959924,1733148440576,-153.0,0.00031863,2]
[343959925,1733148440602,-500.0,0.00031864,7]
[343959926,1733148440622,-153.0,0.00031866,2]
[343959927,1733148440644,-587.0,0.00031887,2]
[343959928,1733148440665,-11819.3444957,0.00032,5]
[343959961,1733148634151,-300.0,0.00028028,2]
[343959963,1733148634162,-300.0,0.00028028,2]
[343959966,1733148634174,-500.0,0.00028029,7]
[343959968,1733148634185,-500.0,0.00028029,7]
[343959969,1733148634195,-350.00163885,0.00028029,7]
[343959972,1733148634210,-500.0,0.00028029,7]
[343959974,1733148634221,-500.0,0.00028029,7]
[343959978,1733148634233,-500.0,0.00028118,7]
[343959981,1733148634244,-500.0,0.00028118,7]
[343959984,1733148634254,-593.34,0.000282,2]
[343959987,1733148634264,-500.0,0.00028303,7]
[343959990,1733148634274,-500.0,0.00028576,7]
[343959993,1733148634284,-500.0,0.0002885,7]
[343959995,1733148634295,-500.0,0.00029124,7]
[343959997,1733148634305,-617.243233,0.0002933,15]
[343959998,1733148634315,-500.0,0.00029398,7]
[343959999,1733148634325,-500.0,0.00029672,7]
[343960000,1733148634336,-326.4502,0.00029946,7]
[343960001,1733148634346,-2000.0,0.0003,2]
[343960002,1733148634356,-420.0,0.00030269,2]
[343960003,1733148634367,-6666.0,0.00030313,2]
[343960004,1733148634377,-185.0,0.00030412,2]
[343960005,1733148634530,-500.0,0.00030412,7]
[343960006,1733148634542,-500.0,0.00030412,7]
[343960007,1733148634554,-9522.9391648,0.00030413,2]
[343960008,1733148634563,-210795.53178303,0.00030413,10]
[343960009,1733148634575,-2835.6612211,0.00030413,10]
[343960010,1733148634598,-14353.8201573,0.00030413,10]
[343960011,1733148634611,-3517.01475917,0.00030413,10]
[343960024,1733148638042,-514.443,0.0002933,15]
[343960025,1733148638052,-6666.0,0.00030313,2]
[343960026,1733148638063,-1304.69468142,0.00030413,10]
[343960042,1733148642866,-500.0,0.00028029,7]
[343960043,1733148642876,-524.0,0.0002933,15]
[343960044,1733148642887,-13.79047236,0.00030413,10]
[343960045,1733148642900,-4105.25144,0.00030413,10]
[343960056,1733148645847,-360.24706229,0.00028029,7]
[343960063,1733148646785,-139.75293771,0.00028029,7]
[343960064,1733148646794,-500.0,0.00028029,7]
[343960065,1733148646804,-20861.37758642,0.00030413,10]
[343960066,1733148646816,-655.06282831,0.00030413,10]
[343960067,1733148991850,183.0,0.00026,60]
[343960102,1733149691687,165.114846,0.00013973,2]
[343960103,1733149719703,705.0000005,0.00025,120]
[343960108,1733149766163,-3969.13277692,0.0002,2]
[343960109,1733149766188,-405.92255524,0.000232,2]
[343960110,1733149766212,-300.0,0.00024599,2]
[343960111,1733149766234,-1397.0,0.00024599,2]
[343960112,1733149766259,-29945.83835628,0.000246,2]
[343960138,1733149832114,-300.0,0.00024599,2]
[343960139,1733149832123,-163.985,0.00024599,2]
[343960155,1733149838040,-136.015,0.00024599,2]
[343960156,1733149838150,-525.14809505,0.00024599,2]
[343960157,1733149838161,-500.0,0.00024599,2]
[343960158,1733149838171,-270.03884618,0.00024599,2]
[343960159,1733149838184,-229.96115382,0.00024599,2]
[343960160,1733149838195,-500.0,0.00024599,2]
[343960162,1733149838207,-500.0,0.00024599,2]
[343960163,1733149838217,-321.99705878,0.00024599,2]
[343960164,1733149838230,-178.00294122,0.00024599,2]
[343960165,1733149838240,-426.25685748,0.00024599,2]
[343960166,1733149838250,-500.0,0.00024599,2]
[343960167,1733149838259,-500.0,0.00024599,2]
[343960168,1733149838268,-500.0,0.00024599,2]
[343960169,1733149838278,-500.0,0.00024599,2]
[343960170,1733149838287,-500.0,0.00024599,2]
[343960171,1733149838297,-500.0,0.00024599,2]
[343960172,1733149838307,-500.0,0.00024599,2]
[343960173,1733149838317,-500.0,0.00024599,2]
[343960174,1733149838326,-500.0,0.00024599,2]
[343960175,1733149838336,-500.0,0.00024599,2]
[343960176,1733149838345,-500.0,0.00024599,2]
[343960177,1733149838354,-500.0,0.00024599,2]
[343960178,1733149838365,-242.15222655,0.00024599,2]
[343960179,1733149838374,-232.13913599,0.00024599,2]
[343960180,1733149838383,-500.0,0.00024599,2]
[343960181,1733149838393,-500.0,0.00024599,2]
[343960182,1733149838402,-500.0,0.00024599,2]
[343960183,1733149838412,-500.0,0.00024599,2]
[343960184,1733149838421,-500.0,0.00024599,2]
[343960185,1733149838430,-500.0,0.00024599,2]
[343960186,1733149838440,-500.0,0.00024599,2]
[343960187,1733149838449,-508.35904841,0.00024599,2]
[343960188,1733149838458,-500.0,0.00024599,2]
[343960189,1733149838467,-500.0,0.00024599,2]
[343960190,1733149838476,-276.17448939,0.00024599,2]
[343960191,1733149838486,-500.0,0.00024599,2]
[343960192,1733149838499,-500.0,0.00024599,2]
[343960193,1733149838508,-500.0,0.00024599,2]
[343960194,1733149838518,-481.9153008,0.00024599,2]
[343960195,1733149838530,-18.0846992,0.00024599,2]
[343960196,1733149838539,-500.0,0.00024599,2]
[343960197,1733149838549,-500.0,0.00024599,2]
[343960198,1733149838559,-500.0,0.00024599,2]
[343960199,1733149838568,-167.91811208,0.00024599,2]
[343960200,1733149838578,-500.0,0.00024599,2]
[343960201,1733149838589,-500.0,0.00024599,2]
[343960202,1733149838598,-500.0,0.00024599,2]